bitfinex-derivatives/quotes_BTCF0:USTF0_20250728
["timestamp","ask_amount","ask_price","bid_price","bid_amount"]
[1753704805208,0.4483407,119180.0,119170.0,0.7584654]
[1753704805407,0.84119942,119180.0,119170.0,0.0837454]
[1753704805607,0.84119942,119180.0,119170.0,0.7584254]
[1753704806104,1.00745712,119180.0,119170.0,0.1698117]
[1753704810210,1.68225712,119180.0,119170.0,0.1698117]
[1753704810411,1.68225712,119180.0,119170.0,0.1698118]
[1753704810908,1.95976186,119180.0,119170.0,0.1698118]
[1753704811108,1.62458013,119180.0,119170.0,0.1698118]
[1753704817813,0.78198243,119180.0,119170.0,0.1795418]
[1753704818114,0.94978013,119180.0,119170.0,0.1795418]
[1753704818514,0.94978013,119180.0,119170.0,0.1735518]
[1753704818915,0.94978013,119180.0,119170.0,0.1698118]
[1753704830625,0.78198243,119180.0,119170.0,0.1698118]
[1753704832025,0.94978013,119180.0,119170.0,0.1698118]
[1753704834727,0.94978013,119180.0,119170.0,0.19349048]
[1753704835229,0.78198243,119180.0,119170.0,0.19349048]
[1753704835431,0.78198243,119180.0,119170.0,0.19391048]
[1753704840244,0.94978023,119180.0,119170.0,0.19391048]
[1753704840446,0.94978023,119180.0,119170.0,0.1698118]
[1753704841540,0.6145985,119180.0,119170.0,0.1698118]
[1753704841740,0.94978023,119180.0,119170.0,0.1698118]
[1753704842439,1.95860196,119180.0,119170.0,0.002]
[1753704842639,2.08445646,119180.0,119160.0,0.125864]
[1753704842842,1.22707526,119170.0,119160.0,0.2936899]
[1753704843041,1.22707526,119170.0,119160.0,0.1678259]
[1753704847352,1.23007526,119170.0,119160.0,0.1678259]
[1753704850048,0.5567259,119160.0,119150.0,0.2517443]
[1753704850350,1.90112936,119160.0,119150.0,0.2517443]
[1753704850755,1.90112936,119160.0,119150.0,0.2097845]
[1753704851347,1.90412936,119160.0,119150.0,0.2097845]
[1753704851854,1.91115158,119160.0,119150.0,0.2097845]
[1753704852256,1.90412936,119160.0,119150.0,0.2097845]
[1753704858558,1.90416936,119160.0,119150.0,0.2097845]
[1753704860865,1.90416936,119160.0,119150.0,0.2092845]
[1753704861462,0.2847322,119120.0,119110.0,0.26458978]
[1753704861659,1.22714566,119120.0,119110.0,0.65379779]
[1753704861963,1.22714566,119120.0,119110.0,0.08253]
[1753704862164,0.5614963,119110.0,119100.0,0.36902]
[1753704862366,1.57111803,119110.0,119100.0,0.36902]
[1753704863163,1.57111803,119110.0,119100.0,0.5369305]
[1753704863765,1.63728176,119110.0,119100.0,0.5369305]
[1753704864569,1.63728176,119110.0,119100.0,0.36902]
[1753704864861,1.63728176,119110.0,119100.0,0.30683]
[1753704865061,1.63728176,119110.0,119100.0,0.2615]
[1753704865568,1.63728176,119110.0,119100.0,0.2635]
[1753704866567,1.65010266,119110.0,119100.0,0.2635]
[1753704867064,1.65010266,119110.0,119100.0,0.4314105]
[1753704867867,1.65010266,119110.0,119100.0,0.4936005]
[1753704868367,1.65010266,119110.0,119100.0,0.5389305]
[1753704869762,0.07898463,119110.0,119100.0,0.4767405]
[1753704869967,0.75918636,119110.0,119100.0,0.5389305]
[1753704870167,0.53933636,119110.0,119100.0,0.56205773]
[1753704870472,0.53933636,119110.0,119100.0,0.56205323]
[1753704871060,0.61417636,119110.0,119100.0,0.56205323]
[1753704871260,0.72825636,119110.0,119100.0,0.5389305]
[1753704871671,0.75918636,119110.0,119100.0,0.5389305]
[1753704872271,0.46207636,119110.0,119100.0,0.56205631]
[1753704874369,0.0128209,119110.0,119100.0,1.06515804]
[1753704874569,0.72878173,119130.0,119120.0,0.5369023]
[1753704875670,0.5614823,119120.0,119110.0,0.5335432]
[1753704875869,1.23184576,119120.0,119110.0,0.2615]
[1753704876176,0.5614963,119110.0,119100.0,0.2098754]
[1753704876363,0.3240104,119100.0,119090.0,1.0786844]
[1753704876566,0.89669213,119100.0,119090.0,1.1408744]
[1753704877073,0.89669213,119100.0,119090.0,1.1907244]
[1753704877272,0.72878173,119100.0,119090.0,1.1907244]
[1753704877578,0.72878173,119100.0,119090.0,1.21392388]
[1753704879273,0.89669223,119100.0,119090.0,1.17194348]
[1753704879672,0.89669223,119100.0,119090.0,0.59876348]
[1753704881970,0.72878173,119100.0,119090.0,0.59876348]
[1753704882170,0.72878173,119100.0,119090.0,0.620894]
[1753704884277,0.72878173,119100.0,119090.0,0.64410445]
[1753704885976,0.72878173,119100.0,119090.0,0.620894]
[1753704886471,0.74156386,119100.0,119090.0,0.64411481]
[1753704888679,0.69298386,119100.0,119090.0,0.64411481]
[1753704889180,0.74156386,119100.0,119090.0,0.64411481]
[1753704892978,0.90947436,119100.0,119090.0,0.53996481]
[1753704893279,1.91793609,119100.0,119090.0,0.19113481]
[1753704893479,0.5557646,119090.0,119080.0,0.31974038]
[1753704893781,1.23891019,119090.0,119080.0,0.2973247]
[1753704894374,1.23891019,119090.0,119080.0,0.2099209]
[1753704894575,0.1679387,119080.0,119070.0,0.31974808]
[1753704894778,1.23892429,119080.0,119070.0,0.53632808]
[1753704894976,1.91224429,119080.0,119070.0,0.27432808]
[1753704895284,1.91224429,119080.0,119070.0,0.19035488]
[1753704895476,1.91224429,119080.0,119070.0,0.1679392]
[1753704895777,0.3246027,119070.0,119060.0,0.30432777]
[1753704896077,0.90375656,119070.0,119060.0,0.27435188]
[1753704897181,0.90575656,119070.0,119060.0,0.27435188]
[1753704897887,0.5558068,119060.0,119050.0,0.28193129]
[1753704898179,0.5558068,119060.0,119050.0,0.1679668]
[1753704898180,1.64396054,119060.0,119050.0,0.1679668]
[1753704898780,1.97914227,119060.0,119050.0,0.1679668]
[1753704899181,1.64396054,119060.0,119050.0,0.1679668]
[1753704899378,1.64596054,119060.0,119050.0,0.1679668]
[1753704899785,1.64496054,119060.0,119050.0,0.1679668]
[1753704899985,1.64696054,119060.0,119050.0,0.1679668]
[1753704900284,0.555821,119050.0,119040.0,0.2099793]
[1753704900487,0.90378486,119050.0,119040.0,0.2553993]
[1753704900679,0.1679951,119040.0,119030.0,0.00978]
[1753704900884,0.609569,119030.0,119010.0,0.08697283]
[1753704901082,0.5074274,119010.0,119000.0,0.21300723]
[1753704901274,1.22624086,119010.0,119000.0,0.2134634]
[1753704901481,1.56497913,119010.0,119000.0,0.2134634]
[1753704901681,1.56497913,119010.0,119000.0,0.3275834]
[1753704901882,1.56497913,119010.0,119000.0,0.3583934]
[1753704902584,1.98418466,119010.0,118990.0,0.302354]
[1753704902777,0.94978885,119000.0,118990.0,0.4536385]
[1753704903088,1.35693837,119000.0,118990.0,0.2134745]
[1753704903288,0.96304102,119000.0,118990.0,0.2134745]
[1753704903490,0.94978885,119000.0,118990.0,0.4922445]
[1753704903683,0.94978885,119000.0,118990.0,0.5403745]
[1753704903684,0.78173735,119000.0,118990.0,0.5403745]
[1753704903888,1.06172,119000.0,118990.0,0.5403745]
[1753704904089,1.45561735,119000.0,118990.0,0.5403745]
[1753704904291,0.8485387,119000.0,118990.0,0.5403745]
[1753704904489,0.45464135,119000.0,118990.0,0.5403745]
[1753704904689,0.8485387,119000.0,118990.0,0.5403745]
[1753704904984,0.8000887,119000.0,118990.0,0.5403745]
[1753704905191,0.19316135,119000.0,118990.0,0.5403745]
[1753704905385,0.12636,119010.0,119000.0,0.4949515]
[1753704905591,1.41926065,119020.0,119010.0,0.5403574]
[1753704905790,1.46771065,119020.0,119010.0,0.5403574]
[1753704906284,1.46771065,119020.0,119010.0,0.4300374]
[1753704906490,1.46771065,119020.0,119010.0,0.1680374]
[1753704906791,0.5558774,119010.0,119000.0,0.2974795]
[1753704906990,0.94977475,119010.0,119000.0,0.2100489]
[1753704908283,0.95077475,119010.0,119000.0,0.2554689]
[1753704908485,0.95077475,119010.0,119000.0,0.2862789]
[1753704908685,0.95077475,119010.0,119000.0,0.4003989]
[1753704908989,0.95077475,119010.0,119000.0,0.4720489]
[1753704909188,0.95077475,119010.0,119000.0,0.49474151]
[1753704909390,0.95077475,119010.0,119000.0,0.5823689]
[1753704909590,0.95081475,119010.0,119000.0,0.5823689]
[1753704909786,0.78277735,119010.0,119000.0,0.5823689]
[1753704910102,0.78377735,119010.0,119000.0,0.5823689]
[1753704910494,0.95181475,119010.0,119000.0,0.5823689]
[1753704910696,0.78377735,119010.0,119000.0,0.5823689]
[1753704911198,0.96502191,119010.0,119000.0,0.5823689]
[1753704911702,0.96502191,119010.0,119000.0,0.2554689]
[1753704912202,0.95181475,119010.0,119000.0,0.2549689]
[1753704912897,0.95181475,119010.0,119000.0,0.3998989]
[1753704913397,0.95181475,119010.0,119000.0,0.4715489]
[1753704914207,0.95181475,119010.0,119000.0,0.5337389]
[1753704914908,0.95181475,119010.0,119000.0,0.5818689]
[1753704915807,0.95181475,119010.0,119000.0,0.5196789]
[1753704918008,0.95181475,119010.0,119000.0,0.5818689]
[1753704922611,0.96502744,119010.0,119000.0,0.5196789]
[1753704923405,0.96502744,119010.0,119000.0,0.5818689]
[1753704924815,1.47219004,119010.0,119000.0,0.5818689]
[1753704925206,1.64022744,119010.0,119000.0,0.5818689]
[1753704925409,1.47219004,119010.0,119000.0,0.5818689]
[1753704925805,1.64022734,119010.0,119000.0,0.5818689]
[1753704926415,1.47219004,119010.0,119000.0,0.5818689]
[1753704926619,0.34998269,119010.0,119000.0,0.5818689]
[1753704926918,0.00204,119010.0,119000.0,1.65088625]
[1753704928614,0.01551267,119010.0,119000.0,1.65088625]
[1753704929119,0.00204,119010.0,119000.0,1.65088625]
[1753704929416,0.01551365,119010.0,119000.0,2.09154271]
[1753704930212,0.01551365,119010.0,119000.0,2.1104392]
[1753704930914,0.01451365,119010.0,119000.0,2.1104392]
[1753704931115,0.73462735,119040.0,119030.0,0.5469691]
[1753704931319,0.73462735,119040.0,119030.0,1.2222491]
[1753704931820,0.78230735,119040.0,119030.0,1.2222491]
[1753704932513,0.78430735,119040.0,119030.0,1.2222491]
[1753704935318,0.78530735,119040.0,119030.0,1.2222491]
[1753704938823,0.7272372,119040.0,119030.0,1.2222491]
[1753704940221,0.39141,119040.0,119030.0,1.2222491]
[1753704940421,0.7272372,119040.0,119030.0,1.2222491]
[1753704943027,0.74066209,119040.0,119030.0,1.2222491]
[1753704947426,0.40035209,119040.0,119030.0,1.2222491]
[1753704947822,0.47374209,119040.0,119030.0,1.2222491]
[1753704948029,0.58424209,119040.0,119030.0,1.2222491]
[1753704948426,0.01642489,119040.0,119030.0,1.2222491]
[1753704948827,0.22398988,119060.0,119050.0,0.3255509]
[1753704949026,0.06714988,119060.0,119050.0,1.2219009]
[1753704949231,0.7242372,119070.0,119060.0,0.2486568]
[1753704949424,0.7242372,119070.0,119060.0,0.5469268]
[1753704951432,0.7242372,119070.0,119060.0,0.5529268]
[1753704951832,0.8921899,119070.0,119060.0,0.006]
[1753704952028,0.5580468,119060.0,119040.0,0.983805]
[1753704952232,0.8938882,119050.0,119040.0,1.1965875]
[1753704952732,0.7259072,119050.0,119040.0,1.2587775]
[1753704952925,0.6777672,119050.0,119040.0,1.2587775]
[1753704953229,0.8938748,119060.0,119050.0,0.5489809]
[1753704955934,0.8938748,119060.0,119050.0,0.5499809]
[1753704958135,0.8938748,119060.0,119050.0,0.5539809]
[1753704960837,0.90716895,119060.0,119050.0,0.5539809]
[1753704961334,0.57605135,119060.0,119050.0,0.5539809]
[1753704961540,0.01329415,119060.0,119050.0,0.5539809]
[1753704962033,0.34912135,119060.0,119050.0,0.5539809]
[1753704963629,0.46922135,119060.0,119050.0,0.5539809]
[1753704964230,0.58423135,119060.0,119050.0,0.5539809]
[1753704964835,0.58423135,119060.0,119050.0,0.57676515]
[1753704965533,0.66006135,119060.0,119050.0,0.57676515]
[1753704965733,0.47478135,119060.0,119050.0,0.57676515]
[1753704965933,0.39895135,119060.0,119050.0,0.57676515]
[1753704966843,0.58423135,119060.0,119050.0,0.57676515]
[1753704967345,0.39895135,119060.0,119050.0,0.5539809]
[1753704967942,0.39895135,119060.0,119050.0,0.57676392]
[1753704968940,0.01329415,119060.0,119050.0,0.57676392]
[1753704969144,0.01329415,119060.0,119050.0,0.91259112]
[1753704969347,0.47478135,119060.0,119050.0,1.25000392]
[1753704969643,0.73920135,119060.0,119050.0,1.25000392]
[1753704970143,0.73920135,119060.0,119050.0,0.57676392]
[1753704970341,0.90716815,119060.0,119050.0,0.30275392]
[1753704970545,1.24299535,119060.0,119050.0,0.005]
[1753704970845,0.1679809,119050.0,119040.0,0.4794847]
[1753704971037,1.24300945,119050.0,119040.0,0.4794847]
[1753704971360,1.24300945,119050.0,119040.0,0.4374951]
[1753704972141,0.90718225,119050.0,119040.0,0.4454951]
[1753704972847,0.90718225,119050.0,119040.0,0.1759951]
[1753704973149,1.58098225,119050.0,119040.0,0.1759951]
[1753704974051,0.01329415,119050.0,119040.0,0.4948051]
[1753704974238,0.01329415,119050.0,119040.0,0.57987258]
[1753704974945,0.01329415,119050.0,119040.0,1.08369977]
[1753704975246,0.01329415,119050.0,119040.0,1.10618973]
[1753704976347,0.01329415,119050.0,119040.0,1.78014973]
[1753704976850,0.01329415,119050.0,119040.0,1.83763587]
[1753704977647,0.01329415,119050.0,119040.0,1.44432253]
[1753704977848,0.01329415,119050.0,119040.0,1.42183257]
[1753704981044,0.01329415,119050.0,119040.0,1.44432253]
[1753704981241,0.01329415,119050.0,119040.0,1.42183257]
[1753704981554,5e-08,119050.0,119040.0,1.72134612]
[1753704981851,0.84912298,119070.0,119060.0,0.5425168]
[1753704982052,0.45580964,119070.0,119060.0,1.23879428]
[1753704982861,0.40766964,119070.0,119060.0,1.23879428]
[1753704983045,0.77253334,119090.0,119080.0,0.3192186]
[1753704983248,0.77253334,119090.0,119080.0,1.2093486]
[1753704983749,0.83957957,119090.0,119080.0,1.2093486]
[1753704985656,0.84357957,119090.0,119080.0,1.2093486]
[1753704987555,0.84457957,119090.0,119080.0,1.2093486]
[1753704987746,0.22270623,119090.0,119080.0,1.2093486]
[1753704988146,0.21870623,119090.0,119080.0,1.2093486]
[1753704988352,0.40161623,119090.0,119080.0,1.2103486]
[1753704988743,0.40061623,119090.0,119080.0,1.2103486]
[1753704988949,0.40061623,119090.0,119080.0,1.2113486]
[1753704989256,0.06704623,119090.0,119080.0,1.2113486]
[1753704989461,0.33357,119100.0,119090.0,0.5361746]
[1753704990155,0.12005,119110.0,119100.0,0.5361605]
[1753704990351,0.72688334,119110.0,119100.0,1.2088005]
[1753704990553,0.77253334,119110.0,119100.0,1.2088005]
[1753704991358,0.37922,119110.0,119100.0,1.2088005]
[1753704991553,0.77253334,119110.0,119100.0,1.2088005]
[1753704992458,0.8400249,119110.0,119100.0,1.2088005]
[1753704992645,0.8400249,119110.0,119100.0,1.2106805]
[1753704993548,0.85299924,119110.0,119100.0,1.2106805]
[1753704996862,0.79512958,119110.0,119100.0,1.2106805]
[1753705000256,0.79512958,119110.0,119100.0,1.2104405]
[1753705006775,0.96302598,119110.0,119100.0,1.2104405]
[1753705007974,0.96302598,119110.0,119100.0,0.3191905]
[1753705008176,0.96302598,119110.0,119100.0,0.8417105]
[1753705008567,0.96302598,119110.0,119100.0,0.8418305]
[1753705008768,0.96302598,119110.0,119100.0,0.1679105]
[1753705008967,0.5014804,119100.0,119090.0,0.2518717]
[1753705009171,0.84989842,119100.0,119090.0,0.2518717]
[1753705009572,0.89554842,119100.0,119090.0,0.209893]
[1753705010166,0.89554842,119100.0,119090.0,0.210893]
[1753705010371,0.89554842,119100.0,119090.0,0.211893]
[1753705011781,0.89554842,119100.0,119090.0,0.257643]
[1753705013278,0.56010474,119100.0,119090.0,0.257643]
[1753705013481,0.89554842,119100.0,119090.0,0.257643]
[1753705013884,0.89554842,119100.0,119090.0,0.470963]
[1753705017581,0.89554842,119100.0,119090.0,0.002]
[1753705017782,1.29136866,119100.0,119090.0,0.002]
[1753705018284,0.6204813,119100.0,119090.0,0.1699245]
[1753705018482,0.95592498,119100.0,119090.0,0.1699245]
[1753705018989,0.89554842,119100.0,119090.0,0.1699245]
[1753705019590,0.56010474,119100.0,119090.0,0.1699245]
[1753705019793,0.89554842,119100.0,119090.0,0.1699245]
[1753705020092,0.89554842,119100.0,119090.0,0.2474545]
[1753705020389,0.89554842,119100.0,119090.0,0.3577245]
[1753705021291,0.56010474,119100.0,119090.0,0.4289945]
[1753705021494,0.89554842,119100.0,119090.0,0.4289945]
[1753705025197,0.89554842,119100.0,119090.0,0.3187245]
[1753705025400,0.89554842,119100.0,119090.0,0.2474545]
[1753705025799,0.95592498,119100.0,119090.0,0.2474545]
[1753705026397,0.89554842,119100.0,119090.0,0.3577245]
[1753705027193,0.89554842,119100.0,119090.0,0.2017045]
[1753705027590,0.89554842,119100.0,119090.0,0.2474545]
[1753705027994,0.89554842,119100.0,119090.0,0.5381945]
[1753705028798,0.89554842,119100.0,119090.0,0.4760045]
[1753705029397,0.89554842,119100.0,119090.0,0.4289945]
[1753705032198,0.89554842,119100.0,119090.0,0.1699246]
[1753705032496,0.2519062,119090.0,119070.0,0.0419872]
[1753705032702,1.21832606,119080.0,119070.0,0.25192]
[1753705032896,1.2313004,119080.0,119070.0,0.25192]
[1753705033103,1.2313004,119080.0,119070.0,0.29767]
[1753705033293,1.2313004,119080.0,119070.0,0.43972]
[1753705034403,1.2373004,119080.0,119070.0,0.43972]
[1753705034602,1.2373004,119080.0,119070.0,0.51099]
[1753705034901,1.2373004,119080.0,119070.0,0.62019]
[1753705035798,1.2403004,119080.0,119070.0,0.62019]
[1753705039906,1.30067696,119080.0,119070.0,0.62019]
[1753705041409,1.30067696,119080.0,119070.0,0.2099327]
[1753705041710,1.46862506,119080.0,119070.0,0.1679527]
[1753705043210,1.4082485,119080.0,119070.0,0.1679527]
[1753705044303,1.4082485,119080.0,119070.0,0.2154627]
[1753705046108,1.46869226,119080.0,119070.0,0.2154627]
[1753705047609,1.46869226,119080.0,119070.0,0.1679527]
[1753705048106,0.5448228,119070.0,119060.0,0.5650357]
[1753705048411,1.56796082,119070.0,119060.0,0.5650357]
[1753705049312,1.56796082,119070.0,119060.0,0.6114557]
[1753705049811,1.57696082,119070.0,119060.0,0.6114557]
[1753705052111,1.57700082,119070.0,119060.0,0.6114557]
[1753705058416,1.24155714,119070.0,119060.0,0.6114557]
[1753705058621,0.56683714,119070.0,119060.0,0.6114557]
[1753705058919,0.90228082,119070.0,119060.0,0.6114557]
[1753705060715,0.73432802,119070.0,119060.0,0.6114557]
[1753705063720,0.68893802,119070.0,119060.0,0.6114557]
[1753705063925,0.14356434,119070.0,119060.0,0.6114557]
[1753705064126,0.47900802,119070.0,119060.0,0.6114557]
[1753705064326,0.14356434,119070.0,119060.0,0.6114557]
[1753705064626,0.47900802,119070.0,119060.0,1.2874157]
[1753705065225,0.35745802,119070.0,119060.0,1.2874157]
[1753705068414,0.02201434,119070.0,119060.0,2.06336734]
[1753705068620,0.06044377,119100.0,119090.0,0.35952]
[1753705068922,0.37479384,119140.0,119120.0,0.3140222]
[1753705068923,0.66716368,119130.0,119120.0,0.3140222]
[1753705069131,0.71255368,119130.0,119120.0,1.1386005]
[1753705071821,0.77916151,119130.0,119120.0,1.1396005]
[1753705072926,0.77916151,119130.0,119120.0,0.1333705]
[1753705073233,0.77946151,119130.0,119120.0,1.1494105]
[1753705080226,0.94732971,119130.0,119120.0,1.1487705]
[1753705080425,0.94732971,119130.0,119120.0,0.7792805]
[1753705080426,1.28277339,119130.0,119120.0,0.7792805]
[1753705080625,0.94732971,119130.0,119120.0,0.7792805]
[1753705081030,0.94732971,119130.0,119120.0,1.0403805]
[1753705081432,0.94732971,119130.0,119120.0,0.3644205]
[1753705081936,0.94732971,119130.0,119120.0,1.0403005]
[1753705082642,0.94732971,119130.0,119120.0,1.1024105]
[1753705082831,0.77946151,119130.0,119120.0,1.1024105]
[1753705083734,0.73377151,119130.0,119120.0,1.1024105]
[1753705084033,0.73377151,119130.0,119120.0,0.4729305]
[1753705084241,0.73377151,119130.0,119120.0,1.1488505]
[1753705084539,0.77946151,119130.0,119120.0,1.1488505]
[1753705085242,0.94732961,119130.0,119120.0,1.1488505]
[1753705085632,0.77946151,119130.0,119120.0,1.1488505]
[1753705087933,0.77946151,119130.0,119120.0,1.1487305]
[1753705088840,0.94732971,119130.0,119120.0,0.4729305]
[1753705089141,0.94732971,119130.0,119120.0,1.1487305]
[1753705089333,0.77946151,119130.0,119120.0,1.1486105]
[1753705092543,0.94732971,119130.0,119120.0,1.0397005]
[1753705092728,0.94732971,119130.0,119120.0,1.1018905]
[1753705093234,0.94732971,119130.0,119120.0,1.1482105]
[1753705093642,0.77946151,119130.0,119120.0,1.1482105]
[1753705094144,0.40229151,119130.0,119120.0,1.1482105]
[1753705094649,0.73674151,119130.0,119120.0,1.1482105]
[1753705095836,0.40229151,119130.0,119120.0,1.1482105]
[1753705096044,0.06684783,119130.0,119120.0,1.1482105]
[1753705096641,0.29632783,119130.0,119120.0,1.1482105]
[1753705097042,0.40129783,119130.0,119120.0,1.1482105]
[1753705097946,0.73674151,119130.0,119120.0,1.1482105]
[1753705098143,0.73674151,119130.0,119120.0,0.4729305]
[1753705098444,0.78243151,119130.0,119120.0,1.1477705]
[1753705099245,0.61485593,119130.0,119120.0,1.1477705]
[1753705099545,0.78243151,119130.0,119120.0,1.1477705]
[1753705101153,0.95029971,119130.0,119120.0,1.1477705]
[1753705101447,0.95029971,119130.0,119120.0,0.4729305]
[1753705101647,0.95029971,119130.0,119120.0,1.1472105]
[1753705102850,0.95029971,119130.0,119120.0,0.4729305]
[1753705103049,0.95029971,119130.0,119120.0,0.9305305]
[1753705103242,0.95029971,119130.0,119120.0,1.0332005]
[1753705103441,0.95029971,119130.0,119120.0,1.11893584]
[1753705103655,0.95029971,119130.0,119120.0,0.49226584]
[1753705103841,0.95029971,119130.0,119120.0,1.16642584]
[1753705105648,0.95029971,119130.0,119120.0,1.1428805]
[1753705106050,0.95029971,119130.0,119120.0,1.1426005]
[1753705107140,0.95029971,119130.0,119120.0,1.16602075]
[1753705107541,0.95029971,119130.0,119120.0,1.1426005]
[1753705107741,0.61485603,119130.0,119120.0,1.1426005]
[1753705107944,0.95029971,119130.0,119120.0,1.1426005]
[1753705108543,0.95029971,119130.0,119120.0,1.1424005]
[1753705109354,0.95029971,119130.0,119120.0,0.4687205]
[1753705109543,0.78243151,119130.0,119120.0,1.1424005]
[1753705109952,0.73674151,119130.0,119120.0,1.1424005]
[1753705111245,0.40229151,119130.0,119120.0,1.16582136]
[1753705111653,0.06684783,119130.0,119120.0,1.16582136]
[1753705112960,0.40229151,119130.0,119120.0,1.16582136]
[1753705113161,0.06684783,119130.0,119120.0,1.16582136]
[1753705113362,0.40229151,119130.0,119120.0,1.16582136]
[1753705114452,0.94515971,119130.0,119120.0,1.16582136]
[1753705114850,0.77729151,119130.0,119120.0,1.16582136]
[1753705115062,0.72883151,119130.0,119120.0,1.16582136]
[1753705116264,0.89669961,119130.0,119120.0,1.16582136]
[1753705118664,0.94515961,119130.0,119120.0,1.16582136]
[1753705119464,0.89669961,119130.0,119120.0,0.49214136]
[1753705119757,0.94515961,119130.0,119120.0,0.9294905]
[1753705119957,0.94515961,119130.0,119120.0,1.0321605]
[1753705120156,0.94515961,119130.0,119120.0,1.0943505]
[1753705121466,0.95798001,119130.0,119120.0,1.0943505]
[1753705121661,0.95798001,119130.0,119120.0,0.4687205]
[1753705121862,0.95798001,119130.0,119120.0,1.1420405]
[1753705122664,0.95798001,119130.0,119120.0,0.4687205]
[1753705122967,0.95798001,119130.0,119120.0,1.1422405]
[1753705126465,0.95798001,119130.0,119120.0,0.4687205]
[1753705126674,0.95798001,119130.0,119120.0,1.1419605]
[1753705127371,0.95798001,119130.0,119120.0,0.4687205]
[1753705127571,0.95798001,119130.0,119120.0,1.1419605]
[1753705128372,0.95798001,119130.0,119120.0,0.4687205]
[1753705128672,0.95798001,119130.0,119120.0,1.1418805]
[1753705129773,0.95798001,119130.0,119120.0,0.8808405]
[1753705129966,0.95798001,119130.0,119120.0,0.9281705]
[1753705130167,0.95798001,119130.0,119120.0,1.0308405]
[1753705130367,0.95798001,119130.0,119120.0,0.4198705]
[1753705130568,0.95798001,119130.0,119120.0,1.0308405]
[1753705131072,0.95798001,119130.0,119120.0,1.0930305]
[1753705131274,0.95798001,119130.0,119120.0,1.11631408]
[1753705133276,0.95798001,119130.0,119120.0,1.0930305]
[1753705135872,0.1678822,119120.0,119110.0,0.2550218]
[1753705136173,1.22280996,119120.0,119110.0,1.2729396]
[1753705136873,1.28329168,119120.0,119110.0,1.2729396]
[1753705137075,0.947848,119120.0,119110.0,1.2749396]
[1753705137272,0.88736628,119120.0,119110.0,1.2789396]
[1753705137474,0.947848,119120.0,119110.0,1.2789396]
[1753705137679,0.88736628,119120.0,119110.0,1.2789396]
[1753705140976,0.0623104,119120.0,119110.0,1.2789396]
[1753705141178,0.0128204,119120.0,119110.0,1.61438328]
[1753705141375,0.97608001,119130.0,119120.0,0.5233323]
[1753705141680,1.03833924,119130.0,119120.0,0.5233323]
[1753705142579,1.03833924,119130.0,119120.0,0.5243323]
[1753705142979,1.03833924,119130.0,119120.0,0.2018823]
[1753705143171,1.03833924,119130.0,119120.0,1.0194523]
[1753705144285,1.03833924,119130.0,119120.0,1.0816423]
[1753705145786,1.09882096,119130.0,119120.0,1.0816423]
[1753705148686,1.09882096,119130.0,119120.0,1.1994923]
[1753705152791,1.09882096,119130.0,119120.0,0.5263323]
[1753705152991,1.09882096,119130.0,119120.0,1.1994923]
[1753705156186,1.09882096,119130.0,119120.0,0.5263323]
[1753705156391,1.09882096,119130.0,119120.0,1.1994523]
[1753705156889,1.03833924,119130.0,119120.0,1.1994523]
[1753705157791,1.03833924,119130.0,119120.0,0.5263323]
[1753705157979,1.03833924,119130.0,119120.0,1.1994523]
[1753705161691,1.03833924,119130.0,119120.0,0.5263323]
[1753705161889,1.03833924,119130.0,119120.0,0.3154123]
[1753705162196,2.04686292,119130.0,119120.0,0.1708823]
[1753705162386,2.04686292,119130.0,119120.0,0.003]
[1753705162788,2.04686292,119130.0,119120.0,0.1708823]
[1753705164093,1.71141924,119130.0,119120.0,0.2204623]
[1753705164294,1.71141924,119130.0,119120.0,0.5267923]
[1753705165284,0.94713094,119130.0,119120.0,0.5267923]
[1753705165488,0.94510094,119130.0,119120.0,0.5267923]
[1753705165889,0.99483094,119130.0,119120.0,0.5267923]
[1753705168902,1.05531266,119130.0,119120.0,0.5267923]
[1753705169602,0.99483094,119130.0,119120.0,0.5267923]
[1753705173503,0.14034878,119130.0,119120.0,0.5267923]
[1753705174592,0.07986706,119130.0,119120.0,0.5267923]
[1753705175304,0.01325923,119130.0,119120.0,1.05314911]
[1753705175497,0.01325923,119130.0,119120.0,1.03012397]
[1753705176101,0.01325923,119130.0,119120.0,1.05314475]
[1753705178898,0.01325923,119130.0,119120.0,0.71770107]
[1753705179706,0.01325923,119130.0,119120.0,0.54981308]
[1753705180208,0.01325923,119130.0,119120.0,0.5267923]
[1753705180613,0.01325923,119130.0,119120.0,0.54977732]
[1753705182813,0.01325923,119130.0,119120.0,0.885221]
[1753705183013,0.40112479,119140.0,119130.0,0.3656582]
[1753705183014,0.06568111,119140.0,119130.0,0.3656582]
[1753705183210,0.33544368,119150.0,119140.0,0.2670341]
[1753705183413,0.66245368,119150.0,119140.0,0.5237641]
[1753705185024,0.71418368,119150.0,119140.0,0.5237641]
[1753705185926,0.71318368,119150.0,119140.0,0.5257641]
[1753705186118,0.71218368,119150.0,119140.0,0.5257641]
[1753705186320,0.71218368,119150.0,119140.0,0.5267641]
[1753705188330,0.77935581,119150.0,119140.0,0.5267641]
[1753705189323,0.94719581,119150.0,119140.0,0.5267641]
[1753705189925,0.77935581,119150.0,119140.0,0.5267641]
[1753705194033,0.77935581,119150.0,119140.0,0.54978251]
[1753705194235,0.77935581,119150.0,119140.0,0.54978367]
[1753705194637,0.77935581,119150.0,119140.0,0.5267641]
[1753705195133,0.79232992,119150.0,119140.0,0.5267641]
[1753705195335,0.96016982,119150.0,119140.0,0.5267641]
[1753705196631,0.79232992,119150.0,119140.0,0.5267641]
[1753705197524,0.79232992,119150.0,119140.0,0.53474422]
[1753705198229,0.96016992,119150.0,119140.0,0.5267641]
[1753705198832,0.79232992,119150.0,119140.0,0.5267641]
[1753705199034,0.79232992,119150.0,119140.0,0.54989774]
[1753705199437,0.79232992,119150.0,119140.0,0.55811093]
[1753705200237,0.96017002,119150.0,119140.0,0.54989774]
[1753705200435,0.96017002,119150.0,119140.0,0.5267641]
[1753705200637,0.79232992,119150.0,119140.0,0.5267641]
[1753705201142,4e-05,119160.0,119150.0,0.3143301]
[1753705201341,4e-05,119160.0,119150.0,1.53106378]
[1753705201342,0.21826,119160.0,119150.0,1.53106378]
[1753705201636,0.31872,119160.0,119150.0,1.53106378]
[1753705201938,0.36566,119160.0,119150.0,1.1956201]
[1753705202832,0.4341858,119160.0,119150.0,1.1956201]
[1753705203433,0.4341858,119160.0,119150.0,1.1986201]
[1753705204731,0.4341858,119160.0,119150.0,1.22182745]
[1753705205527,0.0685658,119160.0,119150.0,1.22182745]
[1753705205933,0.1858958,119160.0,119150.0,1.22182745]
[1753705206133,0.1152058,119160.0,119150.0,1.22182745]
[1753705206833,0.1152058,119160.0,119150.0,1.55727113]
[1753705208641,0.3872458,119160.0,119150.0,1.1986201]
[1753705208842,0.76962948,119160.0,119150.0,1.22181517]
[1753705209044,0.93745538,119160.0,119150.0,1.22165517]
[1753705209342,0.93745538,119160.0,119150.0,0.48694517]
[1753705209537,0.93745538,119160.0,119150.0,1.22165517]
[1753705209935,0.76962948,119160.0,119150.0,1.22165517]
[1753705213148,0.78245343,119160.0,119150.0,1.22165517]
[1753705216741,0.78245343,119160.0,119150.0,0.48694517]